[Event "*** Titled Tuesday 3|2 Blitz"]
[Site "Chess.com"]
[Date "2016.05.03"]
[Round "4"]
[White "sandropozo"]
[Black "tactics321"]
[Result "1-0"]
[WhiteElo "2279"]
[BlackElo "2144"]
[TimeControl "180+2"]
[EndTime "17:51:54 PDT"]
[Termination "sandropozo won by resignation"]

1. d4 {[%clk 0:03:00.5]} 1... Nf6 {[%clk 0:02:59.7]} 2. Nf3 {[%clk 0:03:01.1]}
2... g6 {[%clk 0:03:00.9]} 3. g3 {[%clk 0:03:00.9]} 3... Bg7 {[%clk 0:03:02.2]}
4. Bg2 {[%clk 0:03:01.9]} 4... O-O {[%clk 0:03:03.8]} 5. O-O {[%clk 0:03:02.6]}
5... d5 {[%clk 0:03:05.4]} 6. c4 {[%clk 0:03:03.3]} 6... dxc4 {[%clk 0:03:06.8]}
7. Na3 {[%clk 0:03:03.6]} 7... c3 {[%clk 0:03:08.1]} 8. bxc3 {[%clk 0:03:04.6]}
8... c5 {[%clk 0:03:09.7]} 9. Ne5 {[%clk 0:03:01]} 9... Nc6 {[%clk 0:03:10]} 10.
Bb2 {[%clk 0:02:52.3]} 10... Nd5 {[%clk 0:03:04.3]} 11. Nac4 {[%clk 0:02:41.2]}
11... Be6 {[%clk 0:02:55]} 12. e4 {[%clk 0:02:40]} 12... Nxc3 {[%clk 0:02:43]}
13. Bxc3 {[%clk 0:02:27.4]} 13... cxd4 {[%clk 0:02:42.9]} 14. Nxc6 {[%clk
0:02:28.2]} 14... bxc6 {[%clk 0:02:42.3]} 15. Ba5 {[%clk 0:02:29.7]} 15... Qc8
{[%clk 0:02:26.5]} 16. Nd2 {[%clk 0:02:17.6]} 16... Qa6 {[%clk 0:02:26.6]} 17.
Bb4 {[%clk 0:02:16.3]} 17... d3 {[%clk 0:01:57.7]} 18. Rc1 {[%clk 0:02:14.3]}
18... Qb5 {[%clk 0:01:47.4]} 19. Bc3 {[%clk 0:02:12.2]} 19... Bxa2 {[%clk
0:01:46]} 20. Bxg7 {[%clk 0:02:11.2]} 20... Kxg7 {[%clk 0:01:47.9]} 21. Rc3
{[%clk 0:02:05.6]} 21... Be6 {[%clk 0:01:37.6]} 22. Qa1 {[%clk 0:02:04.2]} 22...
f6 {[%clk 0:01:33.7]} 23. Rfc1 {[%clk 0:02:00.7]} 23... Rac8 {[%clk 0:01:28.5]}
24. Rc5 {[%clk 0:01:51.3]} 24... Qb4 {[%clk 0:01:28.4]} 25. Qc3 {[%clk
0:01:23.9]} 25... Qxc3 {[%clk 0:01:03.7]} 26. R1xc3 {[%clk 0:01:24.3]} 26...
Rfd8 {[%clk 0:01:03.7]} 27. Bf1 {[%clk 0:01:21.9]} 27... Rd6 {[%clk 0:00:43.5]}
28. Rxd3 {[%clk 0:01:15.8]} 28... Rxd3 {[%clk 0:00:40.1]} 29. Bxd3 {[%clk
0:01:17.2]} 29... Rd8 {[%clk 0:00:41.4]} 30. Rc3 {[%clk 0:01:18.1]} 30... a5
{[%clk 0:00:40.9]} 31. Bc4 {[%clk 0:01:06.6]} 31... Bh3 {[%clk 0:00:32.1]} 32.
Rd3 {[%clk 0:01:00.2]} 32... Rb8 {[%clk 0:00:31.6]} 33. f3 {[%clk 0:00:59.6]}
33... h5 {[%clk 0:00:28]} 34. Kf2 {[%clk 0:00:58.5]} 34... a4 {[%clk 0:00:28.3]}
35. Ra3 {[%clk 0:00:58.6]} 35... Rb4 {[%clk 0:00:20.7]} 36. Ke3 {[%clk
0:00:59.1]} 36... e5 {[%clk 0:00:18.8]} 37. Kd3 {[%clk 0:00:57.7]} 37... c5
{[%clk 0:00:19.6]} 38. Kc3 {[%clk 0:00:58.6]} 38... Bd7 {[%clk 0:00:20.2]} 39.
Bd3 {[%clk 0:00:57.5]} 39... Bc6 {[%clk 0:00:20.9]} 40. Bc2 {[%clk 0:00:57.1]}
40... Bb5 {[%clk 0:00:21.7]} 41. Bd3 {[%clk 0:00:48.6]} 41... Bc6 {[%clk
0:00:21.9]} 42. Nc4 {[%clk 0:00:48.9]} 42... Kf8 {[%clk 0:00:21.5]} 43. Nb2
{[%clk 0:00:48.8]} 43... Ke7 {[%clk 0:00:22.1]} 44. Bc2 {[%clk 0:00:49.7]} 44...
Rd4 {[%clk 0:00:21]} 45. Bxa4 {[%clk 0:00:47.1]} 45... Bb7 {[%clk 0:00:19.9]}
46. Bb3 {[%clk 0:00:45.4]} 46... Kd6 {[%clk 0:00:19.5]} 47. Nd3 {[%clk
0:00:43.7]} 47... Bc6 {[%clk 0:00:16.9]} 48. Bc4 {[%clk 0:00:44.4]} 48... f5
{[%clk 0:00:16.2]} 49. exf5 {[%clk 0:00:37.8]} 49... gxf5 {[%clk 0:00:18.1]} 50.
f4 {[%clk 0:00:39]} 50... e4 {[%clk 0:00:18.5]} 51. Ne5 {[%clk 0:00:38.2]} 51...
Bb7 {[%clk 0:00:17.7]} 52. Rb3 {[%clk 0:00:38.9]} 52... Kc7 {[%clk 0:00:18.1]}
53. Rb5 {[%clk 0:00:38.3]} 53... e3 {[%clk 0:00:18.5]} 54. Rxc5+ {[%clk
0:00:39.1]} 54... Kd6 {[%clk 0:00:19.9]} 55. Kxd4 {[%clk 0:00:40.3]} 1-0

[Event "*** Titled Tuesday 3|2 Blitz"]
[Site "Chess.com"]
[Date "2016.05.03"]
[Round "4"]
[White "Lying-Ted"]
[Black "bugsbunny444"]
[Result "1/2-1/2"]
[WhiteElo "2252"]
[BlackElo "2378"]
[TimeControl "180+2"]
[EndTime "17:51:55 PDT"]
[Termination "Game drawn - insufficient material"]

1. d4 {[%clk 0:03:01.9]} 1... e6 {[%clk 0:03:00.8]} 2. e4 {[%clk 0:03:02.6]}
2... d5 {[%clk 0:03:01.3]} 3. e5 {[%clk 0:03:03.8]} 3... c5 {[%clk 0:03:02.4]}
4. Nf3 {[%clk 0:03:04]} 4... Nc6 {[%clk 0:03:03.5]} 5. Bd3 {[%clk 0:03:04.2]}
5... cxd4 {[%clk 0:03:04.8]} 6. O-O {[%clk 0:03:03.5]} 6... f6 {[%clk
0:03:05.8]} 7. Bb5 {[%clk 0:03:03.6]} 7... Bd7 {[%clk 0:03:04.1]} 8. Nxd4 {[%clk
0:03:02.3]} 8... Nxd4 {[%clk 0:03:02.7]} 9. Bxd7+ {[%clk 0:03:01]} 9... Qxd7
{[%clk 0:03:03.7]} 10. Qxd4 {[%clk 0:03:02.9]} 10... Rc8 {[%clk 0:03:01.2]} 11.
Bf4 {[%clk 0:02:51.9]} 11... Rc4 {[%clk 0:02:20.7]} 12. Qd2 {[%clk 0:02:48.2]}
12... fxe5 {[%clk 0:02:11.7]} 13. Bxe5 {[%clk 0:02:47.9]} 13... Nf6 {[%clk
0:02:09.4]} 14. c3 {[%clk 0:02:41]} 14... Bc5 {[%clk 0:01:59]} 15. Bxf6 {[%clk
0:02:37.8]} 15... gxf6 {[%clk 0:02:00.1]} 16. Qh6 {[%clk 0:02:39.3]} 16... Qf7
{[%clk 0:01:44.2]} 17. Nd2 {[%clk 0:02:38.1]} 17... Rg4 {[%clk 0:01:45]} 18. Nb3
{[%clk 0:02:32.5]} 18... Bb6 {[%clk 0:01:38.1]} 19. g3 {[%clk 0:02:22.8]} 19...
Qg6 {[%clk 0:01:30.7]} 20. Qxg6+ {[%clk 0:01:59]} 20... hxg6 {[%clk 0:01:18.4]}
21. Rad1 {[%clk 0:01:53.1]} 21... Kf7 {[%clk 0:01:10.1]} 22. Kg2 {[%clk
0:01:52.2]} 22... g5 {[%clk 0:01:06.8]} 23. Rfe1 {[%clk 0:01:41.3]} 23... Rc4
{[%clk 0:01:04.3]} 24. h3 {[%clk 0:01:38]} 24... Rcc8 {[%clk 0:00:49.4]} 25. Nd4
{[%clk 0:01:36.5]} 25... Rce8 {[%clk 0:00:34.3]} 26. Nf3 {[%clk 0:01:27.9]}
26... Rh7 {[%clk 0:00:19.2]} 27. h4 {[%clk 0:01:26.4]} 27... gxh4 {[%clk
0:00:18.6]} 28. Nxh4 {[%clk 0:01:25.6]} 28... Rhh8 {[%clk 0:00:12.2]} 29. Nf3
{[%clk 0:01:24.8]} 29... Re7 {[%clk 0:00:08.2]} 30. Nd4 {[%clk 0:01:22.4]} 30...
Rc8 {[%clk 0:00:06.9]} 31. f4 {[%clk 0:01:20.7]} 31... Bxd4 {[%clk 0:00:04.6]}
32. Rxd4 {[%clk 0:01:20.2]} 32... Rd8 {[%clk 0:00:06.1]} 33. Red1 {[%clk
0:01:17.1]} 33... Red7 {[%clk 0:00:07.6]} 34. c4 {[%clk 0:01:15.4]} 34... Ke7
{[%clk 0:00:04.9]} 35. cxd5 {[%clk 0:01:13.6]} 35... exd5 {[%clk 0:00:03.3]} 36.
Kf3 {[%clk 0:01:13.6]} 36... f5 {[%clk 0:00:04.2]} 37. g4 {[%clk 0:01:13.7]}
37... fxg4+ {[%clk 0:00:05.4]} 38. Kxg4 {[%clk 0:01:15.6]} 38... Kf6 {[%clk
0:00:07.3]} 39. Kf3 {[%clk 0:01:14.4]} 39... Kf5 {[%clk 0:00:08.3]} 40. Rh1
{[%clk 0:01:14.4]} 40... Rd6 {[%clk 0:00:03.1]} 41. Rh5+ {[%clk 0:01:14.8]}
41... Kf6 {[%clk 0:00:03.8]} 42. Rh6+ {[%clk 0:01:12.9]} 42... Kf5 {[%clk
0:00:05.3]} 43. Rh5+ {[%clk 0:01:13.7]} 43... Kf6 {[%clk 0:00:06.4]} 44. Kg4
{[%clk 0:01:13.1]} 44... Rg8+ {[%clk 0:00:06.7]} 45. Kf3 {[%clk 0:01:12]} 45...
Rgd8 {[%clk 0:00:07.5]} 46. Rh7 {[%clk 0:01:11.8]} 46... R8d7 {[%clk 0:00:08.3]}
47. Rh6+ {[%clk 0:01:12.5]} 47... Kf5 {[%clk 0:00:09.6]} 48. Rh5+ {[%clk
0:01:13.8]} 48... Kf6 {[%clk 0:00:10.9]} 49. b4 {[%clk 0:01:14.8]} 49... Ra6
{[%clk 0:00:10.1]} 50. Rhxd5 {[%clk 0:01:13.6]} 50... Rxd5 {[%clk 0:00:11]} 51.
Rxd5 {[%clk 0:01:14.9]} 51... Rxa2 {[%clk 0:00:11.4]} 52. Ke4 {[%clk 0:01:13.7]}
52... Ra4 {[%clk 0:00:08.7]} 53. Rd6+ {[%clk 0:01:11.6]} 53... Ke7 {[%clk
0:00:09.6]} 54. Rd4 {[%clk 0:01:12.6]} 54... a6 {[%clk 0:00:05.3]} 55. Ke5
{[%clk 0:01:12.5]} 55... a5 {[%clk 0:00:06.9]} 56. bxa5 {[%clk 0:01:11.8]} 56...
Rxa5+ {[%clk 0:00:08.4]} 57. Rd5 {[%clk 0:01:12.3]} 57... Rxd5+ {[%clk
0:00:09.3]} 58. Kxd5 {[%clk 0:01:14.2]} 58... Kf6 {[%clk 0:00:08.1]} 59. Kc5
{[%clk 0:01:14.5]} 59... Kf5 {[%clk 0:00:08.9]} 60. Kb6 {[%clk 0:01:16.4]} 60...
Kxf4 {[%clk 0:00:10.3]} 61. Kxb7 {[%clk 0:01:18.3]} 1/2-1/2

[Event "*** Titled Tuesday 3|2 Blitz"]
[Site "Chess.com"]
[Date "2016.05.03"]
[Round "4"]
[White "TheCount"]
[Black "yarosavich"]
[Result "1/2-1/2"]
[WhiteElo "2537"]
[BlackElo "2538"]
[TimeControl "180+2"]
[EndTime "17:52:05 PDT"]
[Termination "Game drawn - insufficient material"]

1. d4 {[%clk 0:03:01.9]} 1... d5 {[%clk 0:02:54.4]} 2. c4 {[%clk 0:03:02.9]}
2... e6 {[%clk 0:02:55.2]} 3. Nc3 {[%clk 0:03:03.8]} 3... Nf6 {[%clk 0:02:56]}
4. Nf3 {[%clk 0:03:05.1]} 4... c6 {[%clk 0:02:56.9]} 5. e3 {[%clk 0:03:05.3]}
5... Nbd7 {[%clk 0:02:57.8]} 6. Qc2 {[%clk 0:03:06.3]} 6... Bd6 {[%clk
0:02:58.5]} 7. Bd3 {[%clk 0:03:07.6]} 7... O-O {[%clk 0:02:57.3]} 8. O-O {[%clk
0:03:08.8]} 8... dxc4 {[%clk 0:02:58.7]} 9. Bxc4 {[%clk 0:03:10.7]} 9... b5
{[%clk 0:03:00]} 10. Be2 {[%clk 0:03:12]} 10... Bb7 {[%clk 0:03:01.7]} 11. e4
{[%clk 0:03:05]} 11... e5 {[%clk 0:03:02.8]} 12. dxe5 {[%clk 0:03:00.9]} 12...
Nxe5 {[%clk 0:03:03.6]} 13. Nd4 {[%clk 0:03:02.5]} 13... Neg4 {[%clk 0:02:54.5]}
14. g3 {[%clk 0:03:03.6]} 14... Bxg3 {[%clk 0:02:54.5]} 15. hxg3 {[%clk
0:03:05.5]} 15... Qxd4 {[%clk 0:02:55.4]} 16. Bf4 {[%clk 0:02:08.9]} 16... Qc5
{[%clk 0:02:46.9]} 17. Rad1 {[%clk 0:01:55.5]} 17... Rad8 {[%clk 0:02:42.5]} 18.
Kg2 {[%clk 0:01:56.1]} 18... b4 {[%clk 0:02:28]} 19. Qb3 {[%clk 0:01:10.3]}
19... bxc3 {[%clk 0:02:05.8]} 20. Qxb7 {[%clk 0:01:05.5]} 20... Rxd1 {[%clk
0:02:04.9]} 21. Bxd1 {[%clk 0:01:06]} 21... c2 {[%clk 0:01:52.6]} 22. Bf3 {[%clk
0:01:00.4]} 22... Ne5 {[%clk 0:01:22.4]} 23. b4 {[%clk 0:00:47.1]} 23... Qc3
{[%clk 0:01:09.1]} 24. Bxe5 {[%clk 0:00:47.7]} 24... Qxe5 {[%clk 0:01:11]} 25.
Qxc6 {[%clk 0:00:47.9]} 25... Qb2 {[%clk 0:01:08.6]} 26. e5 {[%clk 0:00:42.3]}
26... Nd7 {[%clk 0:00:57.5]} 27. Qxd7 {[%clk 0:00:26.2]} 27... c1=Q {[%clk
0:00:56.3]} 28. Rxc1 {[%clk 0:00:27.9]} 28... Qxc1 {[%clk 0:00:58.2]} 29. Qxa7
{[%clk 0:00:29.2]} 29... Qb2 {[%clk 0:00:51.4]} 30. Qc5 {[%clk 0:00:19.6]} 30...
Qxa2 {[%clk 0:00:50]} 31. b5 {[%clk 0:00:20.2]} 31... Qa5 {[%clk 0:00:45.8]} 32.
Bc6 {[%clk 0:00:17]} 32... Rb8 {[%clk 0:00:43.6]} 33. Qd5 {[%clk 0:00:16.5]}
33... Qc7 {[%clk 0:00:38.6]} 34. e6 {[%clk 0:00:16.4]} 34... fxe6 {[%clk
0:00:36.8]} 35. Qxe6+ {[%clk 0:00:18.3]} 35... Kh8 {[%clk 0:00:38.2]} 36. Qd5
{[%clk 0:00:19.3]} 36... Rd8 {[%clk 0:00:33.2]} 37. Qe4 {[%clk 0:00:20.2]} 37...
Rb8 {[%clk 0:00:33.5]} 38. Qd5 {[%clk 0:00:21.1]} 38... Qe7 {[%clk 0:00:33.6]}
39. Qf5 {[%clk 0:00:21.2]} 39... Qc7 {[%clk 0:00:23.3]} 40. Qe6 {[%clk
0:00:21.3]} 40... Qb6 {[%clk 0:00:18.4]} 41. Qf5 {[%clk 0:00:19.4]} 41... Qc7
{[%clk 0:00:17.4]} 42. Be4 {[%clk 0:00:16]} 42... g6 {[%clk 0:00:18.8]} 43. Qf6+
{[%clk 0:00:14]} 43... Qg7 {[%clk 0:00:19.9]} 44. Qe6 {[%clk 0:00:11.4]} 44...
Qc7 {[%clk 0:00:13.8]} 45. Bc6 {[%clk 0:00:12.5]} 45... Kg7 {[%clk 0:00:12.4]}
46. Qd5 {[%clk 0:00:13.4]} 46... Rd8 {[%clk 0:00:12.7]} 47. Qe4 {[%clk 0:00:14]}
47... Rb8 {[%clk 0:00:12.9]} 48. Qd4+ {[%clk 0:00:15.2]} 48... Kh6 {[%clk
0:00:11.3]} 49. Qf6 {[%clk 0:00:16.3]} 49... Qd8 {[%clk 0:00:10.1]} 50. Qxd8
{[%clk 0:00:16.4]} 50... Rxd8 {[%clk 0:00:10.4]} 51. b6 {[%clk 0:00:18.1]} 51...
Rd4 {[%clk 0:00:11.2]} 52. b7 {[%clk 0:00:18.5]} 52... Rb4 {[%clk 0:00:13]} 53.
f4 {[%clk 0:00:19.3]} 53... Kg7 {[%clk 0:00:14.4]} 54. Kf3 {[%clk 0:00:20.8]}
54... Kf6 {[%clk 0:00:15.3]} 55. Kg4 {[%clk 0:00:22.2]} 55... h6 {[%clk
0:00:15.2]} 56. Kh4 {[%clk 0:00:23.6]} 56... Ke6 {[%clk 0:00:14.7]} 57. Be4
{[%clk 0:00:24.1]} 57... g5+ {[%clk 0:00:12.5]} 58. Kh5 {[%clk 0:00:23.3]} 58...
gxf4 {[%clk 0:00:12]} 59. gxf4 {[%clk 0:00:25.2]} 59... Rxb7 {[%clk 0:00:09.6]}
60. Bxb7 {[%clk 0:00:25.7]} 60... Kf5 {[%clk 0:00:11.5]} 61. Kxh6 {[%clk
0:00:26.4]} 61... Kxf4 {[%clk 0:00:13.4]} 1/2-1/2

[Event "*** Titled Tuesday 3|2 Blitz"]
[Site "Chess.com"]
[Date "2016.05.03"]
[Round "4"]
[White "jeaston1"]
[Black "destroyer305"]
[Result "1-0"]
[WhiteElo "2012"]
[BlackElo "2230"]
[TimeControl "180+2"]
[EndTime "17:52:08 PDT"]
[Termination "jeaston1 won on time"]

1. d4 {[%clk 0:03:01.9]} 1... Nf6 {[%clk 0:03:00.2]} 2. c4 {[%clk 0:03:02.9]}
2... g6 {[%clk 0:03:00.7]} 3. Nc3 {[%clk 0:03:04.4]} 3... d5 {[%clk 0:03:02.1]}
4. cxd5 {[%clk 0:03:05.3]} 4... Nxd5 {[%clk 0:03:04]} 5. e4 {[%clk 0:03:06.9]}
5... Nxc3 {[%clk 0:03:05.4]} 6. bxc3 {[%clk 0:03:08.8]} 6... Bg7 {[%clk
0:03:06.7]} 7. Nf3 {[%clk 0:03:08.5]} 7... c5 {[%clk 0:03:06.4]} 8. Be3 {[%clk
0:03:09.6]} 8... Nc6 {[%clk 0:03:02.2]} 9. Rc1 {[%clk 0:03:10.1]} 9... O-O
{[%clk 0:02:58.6]} 10. d5 {[%clk 0:03:08.7]} 10... Na5 {[%clk 0:02:58.4]} 11.
Bxc5 {[%clk 0:02:55.8]} 11... b6 {[%clk 0:02:59.9]} 12. Bd4 {[%clk 0:02:53.2]}
12... Bg4 {[%clk 0:02:57.3]} 13. Bxg7 {[%clk 0:02:50.1]} 13... Kxg7 {[%clk
0:02:57.9]} 14. Be2 {[%clk 0:02:50.4]} 14... Rc8 {[%clk 0:02:53.2]} 15. O-O
{[%clk 0:02:49.2]} 15... Bxf3 {[%clk 0:02:38.4]} 16. Bxf3 {[%clk 0:02:49.3]}
16... Qd6 {[%clk 0:02:40.1]} 17. Qd4+ {[%clk 0:02:49.2]} 17... Kg8 {[%clk
0:02:41.2]} 18. e5 {[%clk 0:02:50.3]} 18... Qa3 {[%clk 0:02:41.1]} 19. e6 {[%clk
0:02:38.3]} 19... Rc4 {[%clk 0:02:31.5]} 20. Qe3 {[%clk 0:02:17.7]} 20... f5
{[%clk 0:02:28.2]} 21. Rfd1 {[%clk 0:02:12.9]} 21... Qd6 {[%clk 0:02:28]} 22.
Re1 {[%clk 0:02:02]} 22... Rfc8 {[%clk 0:02:28.1]} 23. g3 {[%clk 0:01:56.9]}
23... Qc7 {[%clk 0:02:24.3]} 24. Bg2 {[%clk 0:01:40.4]} 24... Nb7 {[%clk
0:02:14.1]} 25. Qg5 {[%clk 0:00:56.1]} 25... Rxc3 {[%clk 0:01:50.3]} 26. Rxc3
{[%clk 0:00:55.8]} 26... Qxc3 {[%clk 0:01:52.2]} 27. Rd1 {[%clk 0:00:57.2]}
27... Qc7 {[%clk 0:01:50.6]} 28. Qe3 {[%clk 0:00:54.2]} 28... Nd6 {[%clk
0:01:51.2]} 29. Qa3 {[%clk 0:00:54.6]} 29... a5 {[%clk 0:01:50.3]} 30. Qb2
{[%clk 0:00:48.8]} 30... b5 {[%clk 0:01:50.5]} 31. Bf1 {[%clk 0:00:47.5]} 31...
b4 {[%clk 0:01:51.6]} 32. Qe5 {[%clk 0:00:46.9]} 32... Qc3 {[%clk 0:01:50]} 33.
Qf4 {[%clk 0:00:43.4]} 33... Qc2 {[%clk 0:01:48.4]} 34. Rd2 {[%clk 0:00:40.2]}
34... Qe4 {[%clk 0:01:48.3]} 35. Qg5 {[%clk 0:00:39.6]} 35... Rc7 {[%clk
0:01:46.8]} 36. Rd1 {[%clk 0:00:25.1]} 36... a4 {[%clk 0:01:45.6]} 37. Qd2
{[%clk 0:00:24.9]} 37... b3 {[%clk 0:01:45.3]} 38. axb3 {[%clk 0:00:25.8]} 38...
axb3 {[%clk 0:01:47.2]} 39. Qb2 {[%clk 0:00:27.4]} 39... Qb4 {[%clk 0:01:46.5]}
40. Rb1 {[%clk 0:00:28.1]} 40... Rb7 {[%clk 0:01:47.2]} 41. Be2 {[%clk
0:00:26.1]} 41... Nc4 {[%clk 0:01:43.7]} 42. Qd4 {[%clk 0:00:24]} 42... Na3
{[%clk 0:01:33.4]} 43. Qxb4 {[%clk 0:00:22.8]} 43... Rxb4 {[%clk 0:01:35.3]} 44.
Rb2 {[%clk 0:00:24.3]} 44... Nb5 {[%clk 0:01:33.8]} 45. Bd1 {[%clk 0:00:11.8]}
45... Nd4 {[%clk 0:01:34.3]} 46. Kf1 {[%clk 0:00:10.8]} 46... Rc4 {[%clk
0:01:32.1]} 47. Bxb3 {[%clk 0:00:06.3]} 47... Rb4 {[%clk 0:01:32.8]} 48. d6
{[%clk 0:00:07.4]} 48... Kf8 {[%clk 0:00:50.4]} 49. d7 {[%clk 0:00:06.3]} 49...
Rb8 {[%clk 0:00:51.1]} 50. Bd5 {[%clk 0:00:07.1]} 50... Rd8 {[%clk 0:00:44.9]}
51. Rb4 {[%clk 0:00:08.3]} 51... Nxe6 {[%clk 0:00:13.8]} 52. Bxe6 {[%clk
0:00:10.2]} 52... Kg7 {[%clk 0:00:15.2]} 53. Rc4 {[%clk 0:00:11.6]} 53... Kf6
{[%clk 0:00:17.1]} 54. Rc8 {[%clk 0:00:12.6]} 1-0

[Event "*** Titled Tuesday 3|2 Blitz"]
[Site "Chess.com"]
[Date "2016.05.03"]
[Round "4"]
[White "MbMaster"]
[Black "Silent_Terror"]
[Result "1/2-1/2"]
[WhiteElo "2225"]
[BlackElo "2569"]
[TimeControl "180+2"]
[EndTime "17:52:29 PDT"]
[Termination "Game drawn by repetition"]

1. e4 {[%clk 0:03:00.2]} 1... e6 {[%clk 0:03:01.1]} 2. d4 {[%clk 0:02:59.3]}
2... d5 {[%clk 0:03:02.3]} 3. Nc3 {[%clk 0:03:00.4]} 3... Bb4 {[%clk 0:03:02.2]}
4. exd5 {[%clk 0:03:01.1]} 4... exd5 {[%clk 0:03:02.8]} 5. Bd3 {[%clk
0:03:01.8]} 5... Nf6 {[%clk 0:03:04.1]} 6. Bg5 {[%clk 0:02:58.5]} 6... O-O
{[%clk 0:03:01.5]} 7. Qf3 {[%clk 0:02:57.4]} 7... Be7 {[%clk 0:02:57.3]} 8. Nge2
{[%clk 0:02:53.6]} 8... Bg4 {[%clk 0:02:55]} 9. Qg3 {[%clk 0:02:49.6]} 9... Bh5
{[%clk 0:02:56]} 10. O-O-O {[%clk 0:02:29]} 10... a6 {[%clk 0:02:46.6]} 11. Kb1
{[%clk 0:02:24.6]} 11... b5 {[%clk 0:02:46.8]} 12. Rde1 {[%clk 0:01:42.8]} 12...
b4 {[%clk 0:02:30.4]} 13. Nd1 {[%clk 0:01:32.2]} 13... Nc6 {[%clk 0:02:27.2]}
14. f3 {[%clk 0:01:28.1]} 14... a5 {[%clk 0:02:26]} 15. Ne3 {[%clk 0:01:27.9]}
15... Bg6 {[%clk 0:02:24.4]} 16. Nf5 {[%clk 0:01:25.5]} 16... Nh5 {[%clk
0:01:56.4]} 17. Nxe7+ {[%clk 0:01:22.3]} 17... Nxe7 {[%clk 0:01:57]} 18. Qh4
{[%clk 0:01:16.1]} 18... f6 {[%clk 0:01:55.6]} 19. Bxg6 {[%clk 0:01:13.8]} 19...
hxg6 {[%clk 0:01:49.6]} 20. Bc1 {[%clk 0:01:11.8]} 20... Nf5 {[%clk 0:01:26.9]}
21. Qf2 {[%clk 0:01:11.3]} 21... a4 {[%clk 0:01:11.7]} 22. g4 {[%clk 0:01:11.6]}
22... b3 {[%clk 0:01:13.3]} 23. gxf5 {[%clk 0:01:07]} 23... gxf5 {[%clk
0:01:10.1]} 24. Nc3 {[%clk 0:01:02.5]} 24... bxa2+ {[%clk 0:01:03.9]} 25. Kxa2
{[%clk 0:01:00.5]} 25... a3 {[%clk 0:01:03.3]} 26. b3 {[%clk 0:01:00.3]} 26...
c6 {[%clk 0:01:02.5]} 27. Na4 {[%clk 0:00:54.2]} 27... Rxa4 {[%clk 0:00:52]} 28.
bxa4 {[%clk 0:00:54.3]} 28... Qa5 {[%clk 0:00:53.9]} 29. Qe3 {[%clk 0:00:48.3]}
29... Qxa4 {[%clk 0:00:53.4]} 30. Qb3 {[%clk 0:00:37.7]} 30... Qa7 {[%clk
0:00:52.2]} 31. Bxa3 {[%clk 0:00:19.6]} 31... Rb8 {[%clk 0:00:46.5]} 32. Qc3
{[%clk 0:00:20.2]} 32... Qa6 {[%clk 0:00:41.8]} 33. Rb1 {[%clk 0:00:19.9]} 33...
Ra8 {[%clk 0:00:42.9]} 34. Rb3 {[%clk 0:00:20.1]} 34... Nf4 {[%clk 0:00:43.2]}
35. Rhb1 {[%clk 0:00:16]} 35... Kh7 {[%clk 0:00:42.2]} 36. Qc5 {[%clk
0:00:15.8]} 36... Ne6 {[%clk 0:00:36]} 37. Qc3 {[%clk 0:00:12.3]} 37... Qa7
{[%clk 0:00:32.5]} 38. Rb7 {[%clk 0:00:11.7]} 38... Qa4 {[%clk 0:00:30.3]} 39.
R1b4 {[%clk 0:00:10.9]} 39... Qa6 {[%clk 0:00:27.6]} 40. Qd3 {[%clk 0:00:11.6]}
40... Qxd3 {[%clk 0:00:18.8]} 41. cxd3 {[%clk 0:00:13.5]} 41... Nf4 {[%clk
0:00:20.6]} 42. Rc7 {[%clk 0:00:09.4]} 42... Nxd3 {[%clk 0:00:21.1]} 43. Rbb7
{[%clk 0:00:09.8]} 43... Rg8 {[%clk 0:00:22.8]} 44. Bd6 {[%clk 0:00:09.3]} 44...
Ne1 {[%clk 0:00:21.9]} 45. Rxc6 {[%clk 0:00:10]} 45... Nxf3 {[%clk 0:00:22.5]}
46. h3 {[%clk 0:00:11.1]} 46... Nxd4 {[%clk 0:00:23.5]} 47. Rcc7 {[%clk
0:00:12.2]} 47... Ne6 {[%clk 0:00:24.6]} 48. Re7 {[%clk 0:00:12.8]} 48... Ng5
{[%clk 0:00:25.9]} 49. h4 {[%clk 0:00:13.6]} 49... Ne4 {[%clk 0:00:26.9]} 50.
Bf4 {[%clk 0:00:14.7]} 50... Kg6 {[%clk 0:00:28.1]} 51. h5+ {[%clk 0:00:15.6]}
51... Kxh5 {[%clk 0:00:24.4]} 52. Rxg7 {[%clk 0:00:16.6]} 52... Re8 {[%clk
0:00:25.8]} 53. Rge7 {[%clk 0:00:17]} 53... Rc8 {[%clk 0:00:26.5]} 54. Rg7
{[%clk 0:00:16.9]} 54... d4 {[%clk 0:00:27]} 55. Rb2 {[%clk 0:00:16.9]} 55...
Ng5 {[%clk 0:00:26.2]} 56. Bxg5 {[%clk 0:00:15.6]} 56... fxg5 {[%clk 0:00:27.2]}
57. Rh2+ {[%clk 0:00:17.3]} 57... Kg4 {[%clk 0:00:28.7]} 58. Rg2+ {[%clk
0:00:19]} 58... Kf4 {[%clk 0:00:29.1]} 59. R7xg5 {[%clk 0:00:20.4]} 59... d3
{[%clk 0:00:30.8]} 60. Rh5 {[%clk 0:00:20.9]} 60... Ke4 {[%clk 0:00:30.4]} 61.
Rf2 {[%clk 0:00:21.6]} 61... f4 {[%clk 0:00:31.2]} 62. Rh4 {[%clk 0:00:22.7]}
62... Ke3 {[%clk 0:00:32.8]} 63. Rhxf4 {[%clk 0:00:22.8]} 63... d2 {[%clk
0:00:34.3]} 64. R4f3+ {[%clk 0:00:24]} 64... Ke4 {[%clk 0:00:35.7]} 65. Rf4+
{[%clk 0:00:24.5]} 65... Ke3 {[%clk 0:00:36.9]} 66. R4f3+ {[%clk 0:00:17.8]}
66... Ke4 {[%clk 0:00:38]} 67. Rf4+ {[%clk 0:00:14.2]} 67... Ke3 {[%clk
0:00:39.4]} 68. R4f3+ {[%clk 0:00:14.6]} 68... Ke4 {[%clk 0:00:40.7]} 1/2-1/2